[Event "Titled Tuesday Blitz August 1 Early 2023"]
[White "Dau Khuong Duy"]
[Black "Kim, Yoon-Young"]
[WhiteFideId "12424722"]
[BlackFideId "30908779"]
[WhiteElo "2876"]
[BlackElo "2722"]
[Result "1-0"]
[Round "8"]
[TimeControl "180+1"]
[Date "2023.08.01"]
[WhiteClock "0:01:00"]
[BlackClock "0:00:04"]
[Board "24"]

1. e4 {[%clk 0:03:00]}  e5 {[%clk 0:02:57]} 2. Nf3 {[%clk 0:03:00]}  Nc6 {[%clk 0:02:57]} 3. Bb5 {[%clk 0:03:00]}  a6 {[%clk 0:02:57]} 4. Ba4 {[%clk 0:03:00]}  Nf6 {[%clk 0:02:57]} 5. d3 {[%clk 0:02:59]}  d6 {[%clk 0:02:55]} 6. c3 {[%clk 0:02:59]}  Be7 {[%clk 0:02:52]} 7. h3 {[%clk 0:02:59]}  O-O {[%clk 0:02:52]} 8. O-O {[%clk 0:02:59]}  b5 {[%clk 0:02:48]} 9. Bb3 {[%clk 0:02:59]}  Na5 {[%clk 0:02:42]} 10. Bc2 {[%clk 0:02:58]}  c5 {[%clk 0:02:43]} 11. Re1 {[%clk 0:02:58]}  Nc6 {[%clk 0:02:37]} 12. Nbd2 {[%clk 0:02:57]}  Re8 {[%clk 0:02:37]} 13. Nf1 {[%clk 0:02:56]}  Bf8 {[%clk 0:02:38]} 14. Ng3 {[%clk 0:02:57]}  h6 {[%clk 0:02:37]} 15. d4 {[%clk 0:02:56]}  cxd4 {[%clk 0:02:19]} 16. cxd4 {[%clk 0:02:55]}  exd4 {[%clk 0:01:50]} 17. Nxd4 {[%clk 0:02:55]}  Nxd4 {[%clk 0:01:48]} 18. Qxd4 {[%clk 0:02:55]}  Be6 {[%clk 0:01:49]} 19. Be3 {[%clk 0:02:53]}  Rc8 {[%clk 0:01:45]} 20. Qd2 {[%clk 0:02:50]}  Qc7 {[%clk 0:01:21]} 21. Rac1 {[%clk 0:02:48]}  Qb7 {[%clk 0:01:15]} 22. b3 {[%clk 0:02:45]}  d5 {[%clk 0:00:53]} 23. e5 {[%clk 0:02:38]}  Ne4 {[%clk 0:00:49]} 24. Bxe4 {[%clk 0:02:19]}  dxe4 {[%clk 0:00:50]} 25. Qd4 {[%clk 0:02:19]}  Rcd8 {[%clk 0:00:24]} 26. Qxe4 {[%clk 0:02:14]}  Bd5 {[%clk 0:00:24]} 27. Qg4 {[%clk 0:02:10]}  Bxg2 {[%clk 0:00:22]} 28. Bxh6 {[%clk 0:01:55]}  Bf3 {[%clk 0:00:20]} 29. Qg5 {[%clk 0:01:37]}  Kh7 {[%clk 0:00:20]} 30. Re3 {[%clk 0:01:09]}  Bd5 {[%clk 0:00:12]} 31. Nh5 {[%clk 0:01:06]}  Re6 {[%clk 0:00:09]} 32. Qxd8 {[%clk 0:01:05]}  Rg6+ {[%clk 0:00:05]} 33. Rg3 {[%clk 0:01:04]}  Be7 {[%clk 0:00:05]} 34. Qc7 {[%clk 0:01:01]}  Qxc7 {[%clk 0:00:03]} 35. Rxc7 {[%clk 0:01:01]}  Bh4 {[%clk 0:00:04]} 36. Rxg6 {[%clk 0:00:59]}  Kxg6 {[%clk 0:00:04]} 37. Nf4+ {[%clk 0:01:00]} 1-0


[Site "https://www.chess.com"]

[Event "Titled Tuesday Blitz August 1 Early 2023"]
[White "Harvey, Marcus R"]
[Black "Rosen, Eric"]
[WhiteFideId "400092"]
[BlackFideId "2032562"]
[WhiteElo "2803"]
[BlackElo "2700"]
[Result "1-0"]
[Round "8"]
[TimeControl "180+1"]
[Date "2023.08.01"]
[WhiteClock "0:00:10"]
[BlackClock "0:00:01"]
[Board "32"]

1. d4 {[%clk 0:03:00]}  d5 {[%clk 0:02:59]} 2. c4 {[%clk 0:03:00]}  e6 {[%clk 0:02:59]} 3. Nf3 {[%clk 0:03:00]}  Nf6 {[%clk 0:02:58]} 4. g3 {[%clk 0:03:01]}  dxc4 {[%clk 0:02:58]} 5. Bg2 {[%clk 0:03:01]}  Bb4+ {[%clk 0:02:59]} 6. Bd2 {[%clk 0:03:01]}  c5 {[%clk 0:03:00]} 7. Bxb4 {[%clk 0:02:54]}  cxb4 {[%clk 0:03:00]} 8. O-O {[%clk 0:02:53]}  O-O {[%clk 0:03:00]} 9. a3 {[%clk 0:02:54]}  b5 {[%clk 0:02:57]} 10. Ne5 {[%clk 0:02:51]}  Nd5 {[%clk 0:02:57]} 11. axb4 {[%clk 0:02:34]}  Bb7 {[%clk 0:02:57]} 12. b3 {[%clk 0:02:23]}  cxb3 {[%clk 0:02:46]} 13. Qxb3 {[%clk 0:02:23]}  Nd7 {[%clk 0:02:37]} 14. Nd3 {[%clk 0:02:23]}  N7b6 {[%clk 0:02:32]} 15. Nc5 {[%clk 0:02:23]}  Qe7 {[%clk 0:02:27]} 16. e4 {[%clk 0:02:04]}  Nf6 {[%clk 0:02:18]} 17. Nc3 {[%clk 0:02:04]}  a6 {[%clk 0:02:14]} 18. Rfe1 {[%clk 0:02:05]}  Nc4 {[%clk 0:02:07]} 19. d5 {[%clk 0:01:50]}  e5 {[%clk 0:01:49]} 20. Nd1 {[%clk 0:01:42]}  Ne8 {[%clk 0:01:47]} 21. Nb2 {[%clk 0:01:37]}  Ned6 {[%clk 0:01:47]} 22. Nbd3 {[%clk 0:01:35]}  Bc8 {[%clk 0:01:43]} 23. f4 {[%clk 0:01:30]}  f6 {[%clk 0:01:42]} 24. Qc3 {[%clk 0:01:28]}  Re8 {[%clk 0:01:34]} 25. Re2 {[%clk 0:01:28]}  Bg4 {[%clk 0:01:30]} 26. Rea2 {[%clk 0:01:28]}  Bc8 {[%clk 0:00:51]} 27. Re1 {[%clk 0:00:56]}  Qa7 {[%clk 0:00:49]} 28. Kh1 {[%clk 0:00:56]}  Qb6 {[%clk 0:00:49]} 29. Rea1 {[%clk 0:00:49]}  Re7 {[%clk 0:00:43]} 30. Bf3 {[%clk 0:00:49]}  Nf7 {[%clk 0:00:32]} 31. Bh5 {[%clk 0:00:45]}  Nfd6 {[%clk 0:00:29]} 32. Bf3 {[%clk 0:00:39]}  Nf7 {[%clk 0:00:30]} 33. h4 {[%clk 0:00:37]}  Qd6 {[%clk 0:00:29]} 34. Kg2 {[%clk 0:00:36]}  Qb6 {[%clk 0:00:24]} 35. Nf2 {[%clk 0:00:32]}  Nfd6 {[%clk 0:00:22]} 36. Be2 {[%clk 0:00:24]}  a5 {[%clk 0:00:21]} 37. Rxa5 {[%clk 0:00:23]}  Rxa5 {[%clk 0:00:18]} 38. Rxa5 {[%clk 0:00:23]}  Nxa5 {[%clk 0:00:16]} 39. bxa5 {[%clk 0:00:24]}  b4 {[%clk 0:00:15]} 40. axb6 {[%clk 0:00:17]}  bxc3 {[%clk 0:00:15]} 41. Bd3 {[%clk 0:00:17]}  c2 {[%clk 0:00:06]} 42. Bxc2 {[%clk 0:00:17]}  Nc4 {[%clk 0:00:07]} 43. Bb3 {[%clk 0:00:17]}  Nd6 {[%clk 0:00:05]} 44. Kf3 {[%clk 0:00:16]}  Kf8 {[%clk 0:00:03]} 45. Nfd3 {[%clk 0:00:16]}  Bb7 {[%clk 0:00:01]} 46. Nb4 {[%clk 0:00:15]}  Nc8 {[%clk 0:00:02]} 47. f5 {[%clk 0:00:11]}  Nxb6 {[%clk 0:00:02]} 48. d6 {[%clk 0:00:12]}  Re8 {[%clk 0:00:01]} 49. Nxb7 {[%clk 0:00:11]}  Nd7 {[%clk 0:00:02]} 50. Ba4 {[%clk 0:00:11]}  Rb8 {[%clk 0:00:02]} 51. Na5 {[%clk 0:00:06]}  Nc5 {[%clk 0:00:02]} 52. Nbc6 {[%clk 0:00:05]}  Rb6 {[%clk 0:00:02]} 53. Bd1 {[%clk 0:00:03]}  Ra6 {[%clk 0:00:02]} 54. Be2 {[%clk 0:00:04]}  Rb6 {[%clk 0:00:02]} 55. Ke3 {[%clk 0:00:04]}  g6 {[%clk 0:00:02]} 56. g4 {[%clk 0:00:05]}  Nd7 {[%clk 0:00:02]} 57. Bc4 {[%clk 0:00:03]}  Rb1 {[%clk 0:00:02]} 58. Be6 {[%clk 0:00:04]}  Nc5 {[%clk 0:00:01]} 59. Kd2 {[%clk 0:00:04]}  Ra1 {[%clk 0:00:01]} 60. d7 {[%clk 0:00:03]}  Nxd7 {[%clk 0:00:02]} 61. Bxd7 {[%clk 0:00:04]}  Rh1 {[%clk 0:00:03]} 62. h5 {[%clk 0:00:04]}  gxh5 {[%clk 0:00:04]} 63. gxh5 {[%clk 0:00:05]}  Rxh5 {[%clk 0:00:04]} 64. Ke3 {[%clk 0:00:05]}  Rh3+ {[%clk 0:00:05]} 65. Ke2 {[%clk 0:00:06]}  Ra3 {[%clk 0:00:04]} 66. Nc4 {[%clk 0:00:06]}  Rc3 {[%clk 0:00:04]} 67. Ne3 {[%clk 0:00:06]}  h5 {[%clk 0:00:04]} 68. Nd5 {[%clk 0:00:06]}  Ra3 {[%clk 0:00:03]} 69. Nxf6 {[%clk 0:00:06]}  h4 {[%clk 0:00:04]} 70. Nxe5 {[%clk 0:00:06]}  h3 {[%clk 0:00:04]} 71. Nfg4 {[%clk 0:00:06]}  h2 {[%clk 0:00:04]} 72. Nxh2 {[%clk 0:00:06]}  Ra2+ {[%clk 0:00:05]} 73. Kf3 {[%clk 0:00:07]}  Rxh2 {[%clk 0:00:06]} 74. Kf4 {[%clk 0:00:07]}  Rh4+ {[%clk 0:00:06]} 75. Ke3 {[%clk 0:00:07]}  Rh1 {[%clk 0:00:05]} 76. Ng4 {[%clk 0:00:07]}  Re1+ {[%clk 0:00:05]} 77. Kf4 {[%clk 0:00:07]}  Rg1 {[%clk 0:00:06]} 78. Ne3 {[%clk 0:00:07]}  Ke7 {[%clk 0:00:06]} 79. Bc6 {[%clk 0:00:07]}  Kd6 {[%clk 0:00:06]} 80. Ba8 {[%clk 0:00:07]}  Re1 {[%clk 0:00:05]} 81. e5+ {[%clk 0:00:08]}  Ke7 {[%clk 0:00:05]} 82. f6+ {[%clk 0:00:09]}  Kf8 {[%clk 0:00:02]} 83. Bd5 {[%clk 0:00:09]}  Ra1 {[%clk 0:00:01]} 84. e6 {[%clk 0:00:09]}  Ra7 {[%clk 0:00:01]} 85. Ke5 {[%clk 0:00:09]}  Rc7 {[%clk 0:00:01]} 86. Nf5 {[%clk 0:00:09]}  Ra7 {[%clk 0:00:01]} 87. e7+ {[%clk 0:00:10]}  Ke8 {[%clk 0:00:01]} 88. Bc6+ {[%clk 0:00:10]}  Kf7 {[%clk 0:00:01]} 89. e8=Q# {[%clk 0:00:10]} 1-0


[Site "https://www.chess.com"]

[Event "Titled Tuesday Blitz August 1 Early 2023"]
[White "Lamaze, Simon"]
[Black "Hua, Lefong"]
[WhiteFideId "36069264"]
[BlackFideId "2602253"]
[WhiteElo "2787"]
[BlackElo "2670"]
[Result "1-0"]
[Round "8"]
[TimeControl "180+1"]
[Date "2023.08.01"]
[WhiteClock "0:00:14"]
[BlackClock "0:00:10"]
[Board "34"]

1. c4 {[%clk 0:03:00]}  Nf6 {[%clk 0:03:00]} 2. Nc3 {[%clk 0:02:58]}  g6 {[%clk 0:03:00]} 3. e4 {[%clk 0:02:58]}  d6 {[%clk 0:03:00]} 4. d4 {[%clk 0:02:58]}  Bg7 {[%clk 0:03:01]} 5. Be2 {[%clk 0:02:59]}  O-O {[%clk 0:03:01]} 6. Be3 {[%clk 0:02:59]}  c5 {[%clk 0:03:00]} 7. d5 {[%clk 0:02:59]}  e6 {[%clk 0:02:59]} 8. Nf3 {[%clk 0:02:59]}  exd5 {[%clk 0:03:00]} 9. cxd5 {[%clk 0:03:00]}  Bg4 {[%clk 0:02:56]} 10. Nd2 {[%clk 0:02:58]}  Bxe2 {[%clk 0:02:53]} 11. Qxe2 {[%clk 0:02:59]}  a6 {[%clk 0:02:52]} 12. a4 {[%clk 0:02:58]}  Re8 {[%clk 0:02:50]} 13. f3 {[%clk 0:02:58]}  Nbd7 {[%clk 0:02:49]} 14. O-O {[%clk 0:02:58]}  Rb8 {[%clk 0:02:44]} 15. a5 {[%clk 0:02:56]}  Qc7 {[%clk 0:02:35]} 16. Rfc1 {[%clk 0:02:43]}  b5 {[%clk 0:02:22]} 17. axb6 {[%clk 0:02:42]}  Rxb6 {[%clk 0:02:22]} 18. Nc4 {[%clk 0:02:37]}  Rb4 {[%clk 0:02:14]} 19. Bf4 {[%clk 0:02:09]}  Bf8 {[%clk 0:01:54]} 20. Rxa6 {[%clk 0:01:56]}  Nb6 {[%clk 0:01:53]} 21. Nxb6 {[%clk 0:01:52]}  Rxb6 {[%clk 0:01:53]} 22. Rxb6 {[%clk 0:01:52]}  Qxb6 {[%clk 0:01:53]} 23. Qb5 {[%clk 0:01:53]}  Rb8 {[%clk 0:01:50]} 24. Qxb6 {[%clk 0:01:51]}  Rxb6 {[%clk 0:01:51]} 25. Rc2 {[%clk 0:01:50]}  Nh5 {[%clk 0:01:47]} 26. Be3 {[%clk 0:01:36]}  Bg7 {[%clk 0:01:46]} 27. Kf2 {[%clk 0:01:36]}  Nf6 {[%clk 0:01:44]} 28. Nb1 {[%clk 0:01:23]}  Nd7 {[%clk 0:01:39]} 29. Na3 {[%clk 0:01:19]}  Ne5 {[%clk 0:01:23]} 30. Ke2 {[%clk 0:01:16]}  Kf8 {[%clk 0:01:21]} 31. Bd2 {[%clk 0:01:15]}  Ke7 {[%clk 0:01:18]} 32. Bc3 {[%clk 0:01:15]}  f6 {[%clk 0:00:58]} 33. f4 {[%clk 0:01:07]}  Nd7 {[%clk 0:00:58]} 34. Nc4 {[%clk 0:01:07]}  Rb7 {[%clk 0:00:56]} 35. Rc1 {[%clk 0:01:05]}  Bh6 {[%clk 0:00:53]} 36. g3 {[%clk 0:01:03]}  g5 {[%clk 0:00:53]} 37. Kf3 {[%clk 0:01:01]}  gxf4 {[%clk 0:00:51]} 38. gxf4 {[%clk 0:01:02]}  Ne5+ {[%clk 0:00:49]} 39. fxe5 {[%clk 0:00:38]}  Bxc1 {[%clk 0:00:50]} 40. Nxd6 {[%clk 0:00:38]}  Rb3 {[%clk 0:00:30]} 41. Nf5+ {[%clk 0:00:19]}  Ke8 {[%clk 0:00:27]} 42. Kg4 {[%clk 0:00:17]}  Bxb2 {[%clk 0:00:22]} 43. Bxb2 {[%clk 0:00:17]}  Rxb2 {[%clk 0:00:23]} 44. exf6 {[%clk 0:00:17]}  c4 {[%clk 0:00:20]} 45. Nd6+ {[%clk 0:00:16]}  Kf8 {[%clk 0:00:18]} 46. Nxc4 {[%clk 0:00:17]}  Rxh2 {[%clk 0:00:16]} 47. Kf5 {[%clk 0:00:15]}  h5 {[%clk 0:00:15]} 48. d6 {[%clk 0:00:14]}  h4 {[%clk 0:00:14]} 49. d7 {[%clk 0:00:14]}  Kf7 {[%clk 0:00:10]} 50. d8=Q {[%clk 0:00:14]} 1-0


[Site "https://www.chess.com"]

[Event "Titled Tuesday Blitz August 1 Early 2023"]
[White "Aradhya, Garg"]
[Black "Ovetchkin, Roman"]
[WhiteFideId "25006746"]
[BlackFideId "4119991"]
[WhiteElo "2762"]
[BlackElo "2655"]
[Result "1-0"]
[Round "8"]
[TimeControl "180+1"]
[Date "2023.08.01"]
[WhiteClock "0:00:17"]
[BlackClock "0:00:00"]
[Board "36"]

1. d4 {[%clk 0:03:00]}  Nf6 {[%clk 0:02:58]} 2. c4 {[%clk 0:03:01]}  c5 {[%clk 0:02:59]} 3. d5 {[%clk 0:03:01]}  b5 {[%clk 0:02:59]} 4. cxb5 {[%clk 0:03:00]}  a6 {[%clk 0:02:59]} 5. b6 {[%clk 0:02:57]}  g6 {[%clk 0:02:55]} 6. Nc3 {[%clk 0:02:57]}  Qxb6 {[%clk 0:02:54]} 7. Nf3 {[%clk 0:02:57]}  d6 {[%clk 0:02:53]} 8. Nd2 {[%clk 0:02:56]}  Bg7 {[%clk 0:02:53]} 9. Nc4 {[%clk 0:02:55]}  Qd8 {[%clk 0:02:54]} 10. a4 {[%clk 0:02:55]}  Nbd7 {[%clk 0:02:52]} 11. a5 {[%clk 0:02:55]}  O-O {[%clk 0:02:52]} 12. e4 {[%clk 0:02:56]}  Ne8 {[%clk 0:02:51]} 13. Be2 {[%clk 0:02:55]}  Nc7 {[%clk 0:02:49]} 14. O-O {[%clk 0:02:55]}  Nb5 {[%clk 0:02:49]} 15. Bd2 {[%clk 0:02:47]}  Nd4 {[%clk 0:02:47]} 16. Rb1 {[%clk 0:02:46]}  Rb8 {[%clk 0:02:45]} 17. Na4 {[%clk 0:02:41]}  f5 {[%clk 0:02:22]} 18. exf5 {[%clk 0:02:39]}  Rxf5 {[%clk 0:02:14]} 19. Ne3 {[%clk 0:02:29]}  Nxe2+ {[%clk 0:01:54]} 20. Qxe2 {[%clk 0:02:29]}  Rf7 {[%clk 0:01:54]} 21. b4 {[%clk 0:02:29]}  cxb4 {[%clk 0:01:50]} 22. Bxb4 {[%clk 0:02:24]}  Bd4 {[%clk 0:01:36]} 23. Rfd1 {[%clk 0:02:19]}  Ba7 {[%clk 0:01:31]} 24. Bc3 {[%clk 0:02:18]}  Rxb1 {[%clk 0:01:26]} 25. Rxb1 {[%clk 0:02:19]}  Nc5 {[%clk 0:01:05]} 26. Nb6 {[%clk 0:02:15]}  Bd7 {[%clk 0:00:57]} 27. Nxd7 {[%clk 0:02:06]}  Nxd7 {[%clk 0:00:54]} 28. Ng4 {[%clk 0:02:06]}  Kf8 {[%clk 0:00:47]} 29. Qe6 {[%clk 0:02:04]}  Qc7 {[%clk 0:00:41]} 30. Nh6 {[%clk 0:01:56]}  Bxf2+ {[%clk 0:00:36]} 31. Kh1 {[%clk 0:01:56]}  Rg7 {[%clk 0:00:35]} 32. Bxg7+ {[%clk 0:01:49]}  Kxg7 {[%clk 0:00:34]} 33. Qf7+ {[%clk 0:01:00]}  Kxh6 {[%clk 0:00:33]} 34. Qxf2 {[%clk 0:01:00]}  Nf6 {[%clk 0:00:30]} 35. Rd1 {[%clk 0:00:58]}  Kg7 {[%clk 0:00:25]} 36. Qe3 {[%clk 0:00:58]}  Kf8 {[%clk 0:00:20]} 37. h3 {[%clk 0:00:56]}  Qc4 {[%clk 0:00:19]} 38. Qe6 {[%clk 0:00:39]}  Qb5 {[%clk 0:00:13]} 39. g4 {[%clk 0:00:22]}  Qxa5 {[%clk 0:00:11]} 40. g5 {[%clk 0:00:20]}  Qa4 {[%clk 0:00:08]} 41. Rf1 {[%clk 0:00:19]}  Qc4 {[%clk 0:00:00]} 42. Kg2 {[%clk 0:00:17]} 1-0


[Site "https://www.chess.com"]

[Event "Titled Tuesday Blitz August 1 Early 2023"]
[White "Mamedov, Edgar"]
[Black "Starozhilov, Leonid"]
[WhiteFideId "13739980"]
[BlackFideId "14106752"]
[WhiteElo "2637"]
[BlackElo "2756"]
[Result "1-0"]
[Round "8"]
[TimeControl "180+1"]
[Date "2023.08.01"]
[WhiteClock "0:00:06"]
[BlackClock "0:00:04"]
[Board "38"]

1. d4 {[%clk 0:03:00]}  Nf6 {[%clk 0:02:56]} 2. Nf3 {[%clk 0:03:00]}  g6 {[%clk 0:02:56]} 3. Nbd2 {[%clk 0:02:59]}  Bg7 {[%clk 0:02:53]} 4. e4 {[%clk 0:02:59]}  d6 {[%clk 0:02:53]} 5. Bd3 {[%clk 0:02:57]}  O-O {[%clk 0:02:53]} 6. c3 {[%clk 0:02:57]}  c5 {[%clk 0:02:53]} 7. O-O {[%clk 0:02:54]}  cxd4 {[%clk 0:02:52]} 8. cxd4 {[%clk 0:02:50]}  Nc6 {[%clk 0:02:52]} 9. Re1 {[%clk 0:02:50]}  Bg4 {[%clk 0:02:51]} 10. h3 {[%clk 0:02:48]}  Bxf3 {[%clk 0:02:52]} 11. Nxf3 {[%clk 0:02:49]}  Nd7 {[%clk 0:02:52]} 12. Be3 {[%clk 0:02:47]}  Qb6 {[%clk 0:02:37]} 13. d5 {[%clk 0:02:37]}  Nd4 {[%clk 0:02:37]} 14. Bxd4 {[%clk 0:02:19]}  Bxd4 {[%clk 0:02:35]} 15. Nxd4 {[%clk 0:02:09]}  Qxd4 {[%clk 0:02:36]} 16. Bb5 {[%clk 0:02:09]}  Qxd1 {[%clk 0:02:34]} 17. Raxd1 {[%clk 0:02:09]}  Nb6 {[%clk 0:02:17]} 18. e5 {[%clk 0:02:04]}  a6 {[%clk 0:02:17]} 19. exd6 {[%clk 0:01:48]}  exd6 {[%clk 0:01:36]} 20. Bf1 {[%clk 0:01:41]}  Rfe8 {[%clk 0:01:35]} 21. Rxe8+ {[%clk 0:01:38]}  Rxe8 {[%clk 0:01:36]} 22. g3 {[%clk 0:01:31]}  Re5 {[%clk 0:01:35]} 23. Bg2 {[%clk 0:01:25]}  Re2 {[%clk 0:01:32]} 24. Rb1 {[%clk 0:00:40]}  Kg7 {[%clk 0:01:11]} 25. Kf1 {[%clk 0:00:35]}  Rc2 {[%clk 0:01:06]} 26. Be4 {[%clk 0:00:34]}  Rc4 {[%clk 0:01:00]} 27. Bf3 {[%clk 0:00:24]}  Rc5 {[%clk 0:00:55]} 28. b3 {[%clk 0:00:22]}  Rc2 {[%clk 0:00:54]} 29. a4 {[%clk 0:00:20]}  Nd7 {[%clk 0:00:47]} 30. b4 {[%clk 0:00:19]}  Ne5 {[%clk 0:00:47]} 31. Be2 {[%clk 0:00:17]}  Rd2 {[%clk 0:00:44]} 32. Rc1 {[%clk 0:00:15]}  Rd4 {[%clk 0:00:38]} 33. f4 {[%clk 0:00:08]}  Nd7 {[%clk 0:00:38]} 34. Rc7 {[%clk 0:00:07]}  Nf6 {[%clk 0:00:36]} 35. Rxb7 {[%clk 0:00:05]}  Nxd5 {[%clk 0:00:36]} 36. Bxa6 {[%clk 0:00:03]}  Nxb4 {[%clk 0:00:37]} 37. Bb5 {[%clk 0:00:03]}  Rd2 {[%clk 0:00:22]} 38. a5 {[%clk 0:00:03]}  d5 {[%clk 0:00:12]} 39. a6 {[%clk 0:00:03]}  Ra2 {[%clk 0:00:13]} 40. a7 {[%clk 0:00:03]}  Nc2 {[%clk 0:00:09]} 41. Bc6 {[%clk 0:00:02]}  Ne3+ {[%clk 0:00:08]} 42. Ke1 {[%clk 0:00:02]}  d4 {[%clk 0:00:08]} 43. Rd7 {[%clk 0:00:02]}  Nc2+ {[%clk 0:00:04]} 44. Kd1 {[%clk 0:00:02]}  Nb4 {[%clk 0:00:03]} 45. a8=Q {[%clk 0:00:02]}  Rxa8 {[%clk 0:00:01]} 46. Bxa8 {[%clk 0:00:03]}  Nd3 {[%clk 0:00:02]} 47. Kd2 {[%clk 0:00:04]}  Nc5 {[%clk 0:00:02]} 48. Rxd4 {[%clk 0:00:04]}  Nb3+ {[%clk 0:00:01]} 49. Kc3 {[%clk 0:00:05]}  Nxd4 {[%clk 0:00:01]} 50. Kxd4 {[%clk 0:00:06]}  Kf6 {[%clk 0:00:02]} 51. Bd5 {[%clk 0:00:05]}  h6 {[%clk 0:00:03]} 52. g4 {[%clk 0:00:05]}  g5 {[%clk 0:00:03]} 53. f5 {[%clk 0:00:05]}  h5 {[%clk 0:00:04]} 54. Ke4 {[%clk 0:00:05]}  hxg4 {[%clk 0:00:04]} 55. hxg4 {[%clk 0:00:06]}  Ke7 {[%clk 0:00:04]} 56. Bxf7 {[%clk 0:00:05]}  Kxf7 {[%clk 0:00:04]} 57. Ke5 {[%clk 0:00:06]}  Ke7 {[%clk 0:00:04]} 58. f6+ {[%clk 0:00:06]} 1-0


[Site "https://www.chess.com"]

[Event "Titled Tuesday Blitz August 1 Early 2023"]
[White "NovoselovRoman"]
[Black "Timofeev, Artyom"]
[BlackFideId "4140419"]
[WhiteElo "2614"]
[BlackElo "2846"]
[Result "0-1"]
[Round "8"]
[TimeControl "180+1"]
[Date "2023.08.01"]
[WhiteClock "0:00:00"]
[BlackClock "0:00:06"]
[Board "43"]

1. e4 {[%clk 0:03:00]}  d6 {[%clk 0:02:59]} 2. Nc3 {[%clk 0:02:59]}  Nf6 {[%clk 0:02:58]} 3. Nf3 {[%clk 0:02:58]}  g6 {[%clk 0:02:58]} 4. g3 {[%clk 0:02:59]}  Bg7 {[%clk 0:02:58]} 5. Bg2 {[%clk 0:03:00]}  O-O {[%clk 0:02:57]} 6. d3 {[%clk 0:03:00]}  c5 {[%clk 0:02:57]} 7. h3 {[%clk 0:03:00]}  Nc6 {[%clk 0:02:57]} 8. Be3 {[%clk 0:03:01]}  e5 {[%clk 0:02:54]} 9. Qd2 {[%clk 0:03:01]}  Nd4 {[%clk 0:02:54]} 10. Ne2 {[%clk 0:02:56]}  Nxf3+ {[%clk 0:02:48]} 11. Bxf3 {[%clk 0:02:56]}  b6 {[%clk 0:02:48]} 12. Bh6 {[%clk 0:02:56]}  Be6 {[%clk 0:02:40]} 13. h4 {[%clk 0:02:40]}  Bxh6 {[%clk 0:02:35]} 14. Qxh6 {[%clk 0:02:39]}  Kh8 {[%clk 0:02:36]} 15. h5 {[%clk 0:02:31]}  Ng8 {[%clk 0:02:35]} 16. Qe3 {[%clk 0:02:19]}  g5 {[%clk 0:02:35]} 17. h6 {[%clk 0:02:08]}  Rc8 {[%clk 0:02:32]} 18. O-O-O {[%clk 0:02:03]}  f6 {[%clk 0:02:31]} 19. Kb1 {[%clk 0:02:02]}  Ne7 {[%clk 0:02:30]} 20. c3 {[%clk 0:01:56]}  d5 {[%clk 0:02:29]} 21. d4 {[%clk 0:01:54]}  Qc7 {[%clk 0:02:01]} 22. exd5 {[%clk 0:01:47]}  Nxd5 {[%clk 0:02:00]} 23. Bxd5 {[%clk 0:01:31]}  Bxd5 {[%clk 0:01:59]} 24. Rhe1 {[%clk 0:01:32]}  exd4 {[%clk 0:01:13]} 25. cxd4 {[%clk 0:01:31]}  Rfe8 {[%clk 0:01:13]} 26. Qc3 {[%clk 0:01:15]}  Qf7 {[%clk 0:01:08]} 27. Nc1 {[%clk 0:00:48]}  c4 {[%clk 0:01:03]} 28. Ka1 {[%clk 0:00:43]}  a5 {[%clk 0:01:02]} 29. f4 {[%clk 0:00:29]}  g4 {[%clk 0:01:00]} 30. Qa3 {[%clk 0:00:20]}  Qd7 {[%clk 0:00:59]} 31. Qc3 {[%clk 0:00:10]}  Kg8 {[%clk 0:00:57]} 32. Rxe8+ {[%clk 0:00:08]}  Rxe8 {[%clk 0:00:57]} 33. Re1 {[%clk 0:00:09]}  Kf7 {[%clk 0:00:57]} 34. Re3 {[%clk 0:00:08]}  Kg6 {[%clk 0:00:35]} 35. Ne2 {[%clk 0:00:06]}  Kxh6 {[%clk 0:00:30]} 36. a3 {[%clk 0:00:03]}  Kg7 {[%clk 0:00:30]} 37. Qd2 {[%clk 0:00:02]}  h5 {[%clk 0:00:29]} 38. f5 {[%clk 0:00:02]}  Bf7 {[%clk 0:00:28]} 39. Nf4 {[%clk 0:00:03]}  Rxe3 {[%clk 0:00:20]} 40. Qxe3 {[%clk 0:00:03]}  Qxf5 {[%clk 0:00:20]} 41. d5 {[%clk 0:00:02]}  Bxd5 {[%clk 0:00:18]} 42. Qxb6 {[%clk 0:00:03]}  Bf7 {[%clk 0:00:18]} 43. Qe3 {[%clk 0:00:02]}  Qe5 {[%clk 0:00:16]} 44. Qd2 {[%clk 0:00:02]}  a4 {[%clk 0:00:15]} 45. Qd1 {[%clk 0:00:02]}  c3 {[%clk 0:00:14]} 46. bxc3 {[%clk 0:00:02]}  Qxc3+ {[%clk 0:00:14]} 47. Kb1 {[%clk 0:00:03]}  Qxa3 {[%clk 0:00:12]} 48. Qd7 {[%clk 0:00:02]}  Qb3+ {[%clk 0:00:10]} 49. Kc1 {[%clk 0:00:03]}  Qc3+ {[%clk 0:00:06]} 50. Kb1 {[%clk 0:00:03]}  Qe5 {[%clk 0:00:06]} 51. Qxa4 {[%clk 0:00:00]}  h4 {[%clk 0:00:06]} 0-1


[Site "https://www.chess.com"]